bitfinex-derivatives/quotes_ETHF0:USTF0_20250518
["timestamp","ask_amount","ask_price","bid_price","bid_amount"]
[1747574292415,0.7969,2508.9,2508.8,0.79692]
[1747574292606,0.7969,2508.9,2508.8,8.48399419]
[1747574293213,3.8549,2508.9,2508.8,8.48399419]
[1747574294112,3.8549,2508.9,2508.8,6.36427419]
[1747574294314,0.79692,2508.8,2508.7,8.72995]
[1747574294609,2.06432,2508.8,2508.7,8.72995]
[1747574297209,5.12232,2508.8,2508.7,7.933]
[1747574300218,0.79695,2508.7,2508.6,3.33235814]
[1747574300516,2.74145,2508.7,2508.6,8.00055814]
[1747574300915,2.74145,2508.7,2508.6,8.79754814]
[1747574302014,2.74145,2508.7,2508.6,8.00055814]
[1747574302311,5.79945,2508.7,2508.6,8.00055814]
[1747574304025,5.79945,2508.7,2508.6,8.79754814]
[1747574305114,5.79945,2508.7,2508.6,8.00055814]
[1747574305710,5.79945,2508.7,2508.6,0.12455814]
[1747574305904,5.79945,2508.7,2508.2,7.876]
[1747574305905,0.79708,2508.3,2508.2,7.876]
[1747574306511,1.3784,2508.4,2508.1,3.2078]
[1747574306712,0.79727,2507.7,2507.6,3.2078]
[1747574306918,0.79727,2507.7,2507.6,11.0838]
[1747574308815,2.17567,2507.7,2507.6,11.0838]
[1747574309009,2.17567,2507.7,2507.6,11.8811]
[1747574309415,2.17567,2507.7,2507.6,8.6733]
[1747574309615,2.17567,2507.7,2507.6,11.8811]
[1747574311126,0.6814,2508.1,2507.6,11.0838]
[1747574311320,0.79715,2508.1,2508.0,0.79717]
[1747574311526,1.65060968,2508.2,2508.0,7.16143419]
[1747574311728,2.44771968,2508.2,2508.1,1.3097]
[1747574312028,2.44771968,2508.2,2508.1,1.9363]
[1747574314626,1.45071,2508.2,2508.1,1.9363]
[1747574318928,0.79718,2508.0,2507.9,3.2078]
[1747574319129,3.85518,2508.0,2507.9,17.45007419]
[1747574319934,3.85518,2508.0,2507.9,3.2078]
[1747574320530,0.79721,2507.9,2507.8,1.3609]
[1747574321333,0.79721,2507.9,2507.8,7.72517419]
[1747574326742,5.45002539,2508.2,2507.8,7.72517419]
[1747574327047,6.24713539,2508.2,2508.1,6.36427419]
[1747574327544,0.79714,2508.1,2508.0,9.7887]
[1747574327952,0.79714,2508.1,2508.0,16.15297419]
[1747574330852,0.79714,2508.1,2508.0,16.95015419]
[1747574331043,0.79714,2508.1,2508.0,16.15297419]
[1747574331349,0.79714,2508.1,2508.0,20.15795419]
[1747574333351,2.38576539,2508.1,2508.0,19.36077419]
[1747574333851,2.38576539,2508.1,2508.0,16.15297419]
[1747574335049,2.38576539,2508.1,2508.0,16.95015419]
[1747574335245,2.38576539,2508.1,2508.0,16.15297419]
[1747574335444,2.38576539,2508.1,2508.0,16.95015419]
[1747574338954,0.79714,2508.1,2508.0,16.95015419]
[1747574339154,3.18006808,2508.2,2508.1,0.79715]
[1747574339356,3.18006808,2508.2,2508.1,8.53172419]
[1747574340358,3.18006808,2508.2,2508.1,7.73457419]
[1747574340956,3.18006808,2508.2,2508.1,8.53172419]
[1747574341955,2.38293808,2508.2,2508.1,11.73952419]
[1747574342159,2.38293808,2508.2,2508.1,21.26228466]
[1747574342359,2.38293808,2508.2,2508.1,16.26228466]
[1747574342554,2.38293808,2508.2,2508.1,57.06228466]
[1747574344565,0.79707,2508.4,2508.3,0.79706]
[1747574344762,0.79707,2508.4,2508.3,16.48206]
[1747574345059,0.79707,2508.4,2508.3,22.84633419]
[1747574345655,0.88925003,2508.4,2508.3,22.84633419]
[1747574346360,0.88925003,2508.4,2508.3,14.22327419]
[1747574346559,0.88925003,2508.4,2508.3,22.04927419]
[1747574346762,0.79707,2508.4,2508.3,23.41017419]
[1747574346958,0.79707,2508.4,2508.3,24.20725419]
[1747574347960,0.79704,2508.5,2508.4,0.79704]
[1747574348260,0.79704,2508.5,2508.4,8.52221419]
[1747574348764,0.79704,2508.5,2508.4,7.72517419]
[1747574349268,0.79702,2508.5,2508.4,23.40917419]
[1747574349565,3.74354836,2508.6,2508.4,24.20620419]
[1747574349862,3.74354836,2508.6,2508.5,1.3499]
[1747574350765,3.74354836,2508.6,2508.5,9.2089]
[1747574351068,3.74354836,2508.6,2508.5,10.00592]
[1747574351364,2.1525,2508.6,2508.5,10.00592]
[1747574351669,2.1525,2508.6,2508.5,9.2089]
[1747574352165,5.2105,2508.6,2508.5,9.2089]
[1747574352465,5.2105,2508.6,2508.5,10.00592]
[1747574353366,6.80154836,2508.6,2508.5,10.00592]
[1747574353567,6.80154836,2508.6,2508.5,9.2089]
[1747574353868,6.80154836,2508.6,2508.5,10.00592]
[1747574354067,6.80154836,2508.6,2508.5,9.2089]
[1747574355268,6.80154836,2508.6,2508.5,10.00592]
[1747574355671,6.80154836,2508.6,2508.5,9.2089]
[1747574356263,6.00454836,2508.6,2508.5,10.00592]
[1747574356469,4.64904836,2508.6,2508.5,10.63052]
[1747574356765,4.64904836,2508.6,2508.5,16.99479419]
[1747574357169,1.59104836,2508.6,2508.5,16.99479419]
[1747574359776,0.66435228,2508.7,2508.6,0.79699]
[1747574359978,0.75653231,2508.7,2508.6,8.53316419]
[1747574360878,1.46130228,2508.7,2508.6,8.53316419]
[1747574362179,0.66435228,2508.7,2508.6,8.53316419]
[1747574362477,0.79694,2508.8,2508.7,0.79695]
[1747574362679,0.79694,2508.8,2508.7,8.51442419]
[1747574363278,0.79692,2508.8,2508.7,8.51442419]
[1747574363778,2.09161,2508.9,2508.8,0.79692]
[1747574363978,2.09161,2508.9,2508.8,8.43549419]
[1747574364279,5.14961,2508.9,2508.8,8.43549419]
[1747574365080,2.09161,2508.9,2508.8,7.63857419]
[1747574365378,2.09161,2508.9,2508.8,1.2743]
[1747574365676,2.09161,2508.9,2508.8,2.07122]
[1747574366180,0.79692,2508.8,2508.7,0.79693]
[1747574366374,2.16552,2508.8,2508.7,7.824]
[1747574367273,5.22352,2508.8,2508.7,7.824]
[1747574367686,0.79702,2508.5,2508.4,5.27683]
[1747574367872,0.79702,2508.5,2508.4,27.28610419]
[1747574368272,3.85502,2508.5,2508.4,26.48907419]
[1747574368878,5.15952,2508.5,2508.4,26.48907419]
[1747574369275,2.10152,2508.5,2508.4,4.4798]
[1747574369476,2.10152,2508.5,2508.4,20.92185]
[1747574371078,5.15952,2508.5,2508.4,20.92185]
[1747574371882,5.15952,2508.5,2508.4,17.71405]
[1747574372280,2.10152,2508.5,2508.4,17.71405]
[1747574372484,3.06605836,2508.6,2508.5,0.79702]
[1747574372686,2.26904836,2508.6,2508.5,8.52289419]
[1747574372985,2.26904836,2508.6,2508.5,9.14569419]
[1747574373285,1.59104836,2508.6,2508.5,9.14569419]
[1747574376083,0.79696,2508.7,2508.6,0.79699]
[1747574376285,0.79696,2508.7,2508.6,8.43156419]
[1747574377289,0.79696,2508.7,2508.6,2.06729]
[1747574377588,2.11806,2508.7,2508.6,2.06729]
[1747574379188,3.70910836,2508.7,2508.6,2.06729]
[1747574381291,1.59104836,2508.7,2508.6,8.43156419]
[1747574381492,1.59104836,2508.8,2508.7,0.79695]
[1747574381792,2.38796836,2508.8,2508.7,8.46892419]
[1747574382092,2.38796836,2508.8,2508.7,2.10465]
[1747574382482,2.38796836,2508.8,2508.7,2.75715]
[1747574383697,1.59104836,2508.8,2508.7,2.75715]
[1747574383893,3.60360064,2508.8,2508.6,0.79696]
[1747574384098,0.79695,2508.7,2508.6,0.79696]
[1747574384293,2.14515,2508.7,2508.6,0.79696]
[1747574384598,2.14515,2508.7,2508.6,2.07376]
[1747574386397,0.79699,2508.6,2508.5,0.79701]
[1747574386586,2.83009,2508.6,2508.5,14.98128419]
[1747574387199,5.88809,2508.6,2508.5,14.98128419]
[1747574387399,5.0911,2508.6,2508.5,14.98128419]
[1747574387598,5.0911,2508.6,2508.5,16.28448419]
[1747574387901,5.88809,2508.6,2508.5,16.28448419]
[1747574388099,2.83009,2508.6,2508.5,16.28448419]
[1747574389201,5.88809,2508.6,2508.5,16.28448419]
[1747574390003,5.0911,2508.6,2508.5,16.28448419]
[1747574390195,3.7232,2508.6,2508.5,16.28448419]
[1747574390395,3.058,2508.6,2508.5,16.28448419]
[1747574391202,2.25540064,2508.7,2508.6,0.79699]
[1747574391404,2.25540064,2508.7,2508.6,9.15446419]
[1747574401103,3.05235064,2508.7,2508.6,9.15446419]
[1747574401408,2.25540064,2508.7,2508.6,9.15446419]
[1747574404714,1.68322839,2508.7,2508.6,18.43269722]
[1747574406709,0.62121025,2508.7,2508.6,18.43269722]
[1747574407607,2.51871776,2508.8,2508.7,7.16122419]
[1747574407812,2.51871776,2508.8,2508.7,11.66842419]
[1747574408009,0.86971776,2508.8,2508.7,20.85427237]
[1747574408215,0.86971776,2508.8,2508.7,61.65427237]
[1747574409311,7.76e-06,2508.8,2508.7,55.28999818]
[1747574409518,7.76e-06,2508.8,2508.7,61.65427237]
[1747574409720,0.18053079,2509.1,2509.0,7.16113419]
[1747574410014,7.9e-07,2509.1,2509.0,52.78593419]
[1747574410219,1.6526731,2509.4,2509.3,0.79676]
[1747574410220,0.66573161,2509.4,2509.3,0.79676]
[1747574410413,0.66573161,2509.4,2509.3,10.36883419]
[1747574410607,0.66573161,2509.4,2509.3,14.98084149]
[1747574411214,3.17725078,2509.8,2509.7,0.79664]
[1747574411420,7.9e-07,2509.9,2509.8,0.7966]
[1747574411616,7.9e-07,2509.9,2509.8,1.4297]
[1747574411915,7.9e-07,2509.9,2509.8,12.01655584]
[1747574413625,7.9e-07,2509.9,2509.8,12.31116028]
[1747574414326,7.9e-07,2509.9,2509.8,13.68826028]
[1747574414620,7.9e-07,2509.9,2509.8,18.68826028]
[1747574416122,1.3064,2510.3,2510.2,0.79648]
[1747574416422,1.3064,2510.3,2510.2,25.99955419]
[1747574416726,1.3064,2510.3,2510.2,19.63528]
[1747574418227,2.647,2510.3,2510.2,19.63528]
[1747574418922,2.647,2510.3,2510.2,19.759747]
[1747574419825,2.73918003,2510.3,2510.2,19.759747]
[1747574420328,2.73918003,2510.3,2510.2,19.75974781]
[1747574420524,3.53563003,2510.3,2510.2,18.311022]
[1747574420828,3.53563003,2510.3,2510.2,19.75874781]
[1747574421325,5.79718003,2510.3,2510.2,19.75875009]
[1747574422229,5.79718003,2510.3,2510.2,19.75874866]
[1747574422527,6.59363003,2510.3,2510.2,19.75874866]
[1747574423623,6.59363003,2510.3,2510.2,18.31102285]
[1747574423819,6.59363003,2510.3,2510.2,18.96126866]
[1747574424123,6.59363003,2510.3,2510.2,18.95526866]
[1747574424327,6.59363003,2510.3,2510.2,18.95527293]
[1747574425629,6.59363003,2510.3,2510.2,18.95327293]
[1747574425830,6.59363003,2510.3,2510.2,3.33227293]
[1747574426027,6.59363003,2510.3,2510.2,18.95327293]
[1747574426330,6.59363003,2510.3,2510.2,18.95327468]
[1747574427825,6.59363003,2510.3,2510.2,3.33227468]
[1747574428026,6.59363003,2510.3,2510.2,18.95227468]
[1747574428823,6.59363003,2510.3,2510.2,3.33227468]
[1747574429024,6.59363003,2510.3,2510.2,19.74875468]
[1747574429925,5.79718003,2510.3,2510.2,19.74875468]
[1747574430130,6.59363003,2510.3,2510.2,19.74875468]
[1747574430733,6.59363003,2510.3,2510.2,18.95227468]
[1747574431830,6.59363003,2510.3,2510.2,18.8278]
[1747574432034,5.79718003,2510.3,2510.2,19.74875798]
[1747574432635,5.79718003,2510.3,2510.2,20.04338782]
[1747574433135,5.79718003,2510.3,2510.2,20.04337536]
[1747574433938,5.79718003,2510.3,2510.2,20.0433987]
[1747574434238,5.79718003,2510.3,2510.2,20.04344445]
[1747574434840,5.79718003,2510.3,2510.2,26.40771864]
[1747574435137,2.73918003,2510.3,2510.2,26.40771864]
[1747574435439,2.73918003,2510.3,2510.2,27.05381864]
[1747574435636,2.73918003,2510.3,2510.2,26.75911913]
[1747574435936,2.73918003,2510.3,2510.2,27.05385248]
[1747574437535,2.73918003,2510.3,2510.2,26.93057549]
[1747574437840,0.72098003,2510.3,2510.2,27.05504224]
[1747574439140,0.09218003,2510.3,2510.2,27.05503863]
[1747574439442,0.09218003,2510.3,2510.2,27.05502011]
[1747574441435,0.09218003,2510.3,2510.2,27.05502232]
[1747574441836,0.88863003,2510.3,2510.2,11.43502232]
[1747574442042,0.09218003,2510.3,2510.2,27.05102232]
[1747574442242,0.09218003,2510.3,2510.2,28.42732232]
[1747574443742,0.09218003,2510.3,2510.2,28.42731954]
[1747574445433,0.09218003,2510.3,2510.2,28.42732352]
[1747574446241,3.15018003,2510.3,2510.2,28.42732352]
[1747574447143,0.09218003,2510.3,2510.2,28.42732352]
[1747574449043,0.09218003,2510.3,2510.2,28.13141969]
[1747574449345,0.09218003,2510.3,2510.2,28.4257188]
[1747574449642,0.09218003,2510.3,2510.2,28.42572408]
[1747574450146,0.09218003,2510.3,2510.2,25.21792408]
[1747574450338,0.09218003,2510.3,2510.2,28.42572408]
[1747574450539,0.88863003,2510.3,2510.2,28.42572408]
[1747574450745,0.88863003,2510.3,2510.2,28.41872408]
[1747574451044,0.88863003,2510.3,2510.2,28.4187314]
[1747574451247,3.94663003,2510.3,2510.2,28.41873116]
[1747574451945,3.15018003,2510.3,2510.2,28.41873116]
[1747574453137,0.09218003,2510.3,2510.2,28.41873116]
[1747574453338,0.09218003,2510.3,2510.2,12.80965262]
[1747574453539,0.09218003,2510.3,2510.2,28.41865262]
[1747574454246,0.09218003,2510.3,2510.2,32.81832892]
[1747574455246,0.09218003,2510.3,2510.2,32.81832384]
[1747574456744,0.09218003,2510.3,2510.2,34.39708028]
[1747574457136,0.09218003,2510.3,2510.2,18.78801938]
[1747574457339,0.09218003,2510.3,2510.2,34.39601938]
[1747574458149,1.49646683,2510.7,2510.6,7.16062419]
[1747574458339,1.49646683,2510.7,2510.6,26.39405664]
[1747574458539,1.49646683,2510.7,2510.6,30.93084726]
[1747574459045,1.49646683,2510.7,2510.6,32.94155474]
[1747574460041,1.42754,2511.0,2510.6,33.32997329]
[1747574460240,1.42754,2511.0,2510.9,7.16053419]
[1747574460444,1.42754,2511.0,2510.9,7.57887412]
[1747574460744,1.42754,2511.0,2510.9,16.82159993]
[1747574461149,4.48554,2511.0,2510.9,16.82159993]
[1747574461346,4.48554,2511.0,2510.9,16.02433993]
[1747574461947,4.48554,2511.0,2510.9,16.82056084]
[1747574462640,3.6893,2511.0,2510.9,23.18483503]
[1747574462840,3.6893,2511.0,2510.9,26.39263503]
[1747574464048,4.48552,2511.0,2510.9,26.39263009]
[1747574464250,4.48552,2511.0,2510.9,26.39163009]
[1747574464541,4.57770003,2511.0,2510.9,26.39163009]
[1747574464946,3.78148003,2511.0,2510.9,26.39163009]
[1747574465647,4.57770003,2511.0,2510.9,26.39163009]
[1747574465851,4.57770003,2511.0,2510.9,26.39158104]
[1747574467945,4.57770003,2511.0,2510.9,26.39150462]
[1747574468642,4.57770003,2511.0,2510.9,4.42223043]
[1747574468842,4.57770003,2511.0,2510.9,20.02523043]
[1747574469649,4.57770003,2511.0,2510.9,3.62597043]
[1747574469850,4.57770003,2511.0,2510.9,19.22897043]
[1747574470745,9.57770003,2511.0,2510.9,11.13624075]
[1747574471050,4.57770003,2511.0,2510.9,11.13624075]
[1747574471748,4.57770003,2511.0,2510.9,11.13625118]
[1747574471943,4.57770003,2511.0,2510.9,11.93251118]
[1747574472149,4.57770003,2511.0,2510.9,13.28231118]
[1747574472451,4.57770003,2511.0,2510.9,13.57600382]
[1747574473246,3.78148003,2511.0,2510.9,13.57600382]
[1747574473448,4.57770003,2511.0,2510.9,11.42990835]
[1747574475353,4.57770003,2511.0,2510.9,11.43008887]
[1747574475747,4.57770003,2511.0,2510.9,12.22634887]
[1747574476150,4.57770003,2511.0,2510.9,13.55044887]
[1747574477256,4.57770003,2511.0,2510.9,13.55051379]
[1747574477553,3.15018003,2511.0,2510.9,13.55051379]
[1747574477755,3.15018003,2511.0,2510.9,25.01522623]
[1747574478151,0.09218003,2511.0,2510.9,25.01522623]
[1747574480955,0.09218003,2511.0,2510.9,25.01520525]
[1747574482253,0.99640056,2511.4,2511.3,7.16040419]
[1747574482254,0.90422053,2511.4,2511.3,7.16040419]
[1747574482447,0.90422053,2511.4,2511.3,26.379537]
[1747574482853,0.90422053,2511.4,2511.3,30.53212448]
[1747574483165,0.90422053,2511.4,2511.3,17.15971484]
[1747574483461,0.90422053,2511.4,2511.3,33.62049303]
[1747574483665,5.3e-07,2511.4,2511.3,38.62049303]
[1747574483851,5.3e-07,2511.4,2511.3,38.9349739]
[1747574484261,5.3e-07,2511.4,2511.3,79.7349739]
[1747574484452,2.6156,2512.1,2512.0,0.79591]
[1747574484652,3.69003287,2512.2,2512.1,0.79588]
[1747574484863,3.69003287,2512.2,2512.1,0.9202993]
[1747574485162,3.69003287,2512.2,2512.1,2.1667993]
[1747574485353,3.69003287,2512.2,2512.1,14.08884033]
[1747574485552,3.69003287,2512.2,2512.1,5.81391948]
[1747574485748,4.94283287,2512.2,2512.1,21.11170568]
[1747574485958,5.73867287,2512.2,2512.1,21.11170568]
[1747574486164,8.79667287,2512.2,2512.1,21.11170568]
[1747574486354,8.79667287,2512.2,2512.1,5.52070568]
[1747574486556,8.79667287,2512.2,2512.1,0.1244193]
[1747574486754,11.42740304,2512.2,2512.1,15.7154193]
[1747574486956,11.42740304,2512.2,2512.1,7.9204193]
[1747574488057,6.42740304,2512.2,2512.1,7.9204193]
[1747574488263,11.42740304,2512.2,2512.1,7.9204193]
[1747574488459,11.42740304,2512.2,2512.1,7.796]
[1747574488658,11.42740304,2512.2,2512.1,7.92039868]
[1747574490563,10.10664,2512.2,2512.1,7.92039868]
[1747574490962,10.10664,2512.2,2512.1,7.91939868]
[1747574491166,0.796,2511.7,2511.6,7.795]
[1747574491579,8.383,2511.7,2511.6,7.795]
[1747574491769,2.587,2511.7,2511.6,8.59103]
[1747574492064,3.383,2511.7,2511.6,8.59103]
[1747574492265,6.441,2511.7,2511.6,8.59103]
[1747574492455,6.441,2511.7,2511.6,7.795]
[1747574492659,6.441,2511.7,2511.6,8.59103]
[1747574493468,5.645,2511.7,2511.6,8.59103]
[1747574493664,4.3842,2511.7,2511.6,8.59103]
[1747574494269,3.058,2511.7,2511.6,19.53021505]
[1747574494660,3.058,2511.7,2511.6,19.82350398]
[1747574494862,3.15018003,2511.7,2511.6,19.82350398]
[1747574495166,0.88818003,2511.7,2511.6,15.24859312]
[1747574495358,2.22138003,2511.7,2511.6,15.24859312]
[1747574495560,2.22138003,2511.7,2511.6,16.60449312]
[1747574495861,0.79607,2511.5,2511.4,3.2078]
[1747574496067,0.79607,2511.5,2511.4,18.8368]
[1747574496266,3.85407,2511.5,2511.4,18.8368]
[1747574496466,5.14267,2511.5,2511.4,18.8368]
[1747574497365,4.3466,2511.5,2511.4,19.6359]
[1747574497565,4.3466,2511.5,2511.4,19.92931943]
[1747574498165,4.3466,2511.5,2511.4,19.92928868]
[1747574498562,4.3466,2511.5,2511.4,19.6359]
[1747574499075,4.3466,2511.5,2511.4,26.00017419]
[1747574500366,4.3466,2511.5,2511.4,26.29363569]
[1747574501063,5.14267,2511.5,2511.4,18.45663569]
[1747574501267,5.14267,2511.5,2511.4,26.29463569]
[1747574501766,5.14267,2511.5,2511.4,26.2947347]
[1747574502671,5.14267,2511.5,2511.4,26.29480856]
[1747574503068,5.14267,2511.5,2511.4,26.41922218]
[1747574503674,5.14267,2511.5,2511.4,26.41922313]
[1747574503973,5.14267,2511.5,2511.4,26.41928551]
[1747574504575,5.14267,2511.5,2511.4,10.78628551]
[1747574504873,5.14267,2511.5,2511.4,26.40828551]
[1747574505075,4.3466,2511.5,2511.4,26.40828551]
[1747574505776,5.14267,2511.5,2511.4,9.99033205]
[1747574505974,6.39897,2511.5,2511.4,25.60833205]
[1747574507177,6.39897,2511.5,2511.4,26.40443205]
[1747574507576,6.39897,2511.5,2511.4,4.4222487]
[1747574507877,6.39897,2511.5,2511.4,20.0332487]
[1747574508577,6.39897,2511.5,2511.4,3.6261487]
[1747574508773,6.39897,2511.5,2511.4,19.2761487]
[1747574509274,6.39897,2511.5,2511.4,20.0722487]
[1747574509469,6.39897,2511.5,2511.4,4.42237169]
[1747574509669,6.39897,2511.5,2511.4,20.06937169]
[1747574510081,5.6029,2511.5,2511.4,20.06937169]
[1747574510281,6.39897,2511.5,2511.4,20.06737169]
[1747574511273,6.49115003,2511.5,2511.4,20.06737169]
[1747574511478,6.49115003,2511.5,2511.4,20.0673885]
[1747574511680,6.49115003,2511.5,2511.4,19.2712885]
[1747574511871,6.49115003,2511.5,2511.4,20.0673885]
[1747574512380,6.49115003,2511.5,2511.4,3.6262885]
[1747574512877,6.49115003,2511.5,2511.4,19.2622885]
[1747574513081,6.49115003,2511.5,2511.4,20.0583885]
[1747574513280,6.49115003,2511.5,2511.4,19.26229872]
[1747574513578,6.49115003,2511.5,2511.4,3.62629872]
[1747574513772,6.49115003,2511.5,2511.4,18.96522366]
[1747574514577,6.49115003,2511.5,2511.4,20.05548807]
[1747574514780,5.69508003,2511.5,2511.4,20.05548807]
[1747574514978,6.49115003,2511.5,2511.4,20.05548807]
[1747574515781,5.69508003,2511.5,2511.4,20.05548807]
[1747574516079,4.43878003,2511.5,2511.4,20.05548807]
[1747574516380,4.56855003,2511.5,2511.4,20.05548807]
[1747574516883,4.56855003,2511.5,2511.4,20.69418807]
[1747574517179,4.56855003,2511.5,2511.4,20.69436429]
[1747574518974,4.56855003,2511.5,2511.4,20.2756]
[1747574519178,3.77248003,2511.5,2511.4,20.69446499]
[1747574519479,3.15018003,2511.5,2511.4,27.73313918]
[1747574520781,3.15018003,2511.5,2511.4,27.73313214]
[1747574522179,3.15018003,2511.5,2511.4,27.73312753]
[1747574523871,3.15018003,2511.5,2511.4,29.07752753]
[1747574524181,3.15018003,2511.5,2511.4,29.07750639]
[1747574525977,3.15018003,2511.5,2511.4,29.07822143]
[1747574526178,0.09218003,2511.5,2511.4,29.07822143]
[1747574527984,0.09218003,2511.5,2511.4,29.07813747]
[1747574529694,0.88825003,2511.5,2511.4,29.07813747]
[1747574529885,0.88825003,2511.5,2511.4,29.07812266]
[1747574530282,3.15018003,2511.5,2511.4,29.07812266]
[1747574531682,3.15018003,2511.5,2511.4,29.07812411]
[1747574531888,3.94625003,2511.5,2511.4,28.39072411]
[1747574532083,5.93155003,2511.5,2511.4,11.45224992]
[1747574532290,5.93155003,2511.5,2511.4,20.04334992]
[1747574533493,5.93155003,2511.5,2511.4,19.24724992]
[1747574533792,5.93155003,2511.5,2511.4,3.62725723]
[1747574533991,5.93155003,2511.5,2511.4,19.24725723]
[1747574534192,5.93155003,2511.5,2511.4,3.62725723]
[1747574534390,5.93155003,2511.5,2511.4,11.45225723]
[1747574534895,5.93155003,2511.5,2511.4,8.24445723]
[1747574535697,5.93155003,2511.5,2511.4,8.24451158]
[1747574536803,5.93155003,2511.5,2511.4,7.94941306]
[1747574537102,8.43540523,2511.5,2511.4,7.94941306]
[1747574537702,8.43540523,2511.5,2511.4,8.24446829]
[1747574538203,8.43540523,2511.5,2511.4,8.12002576]
[1747574538399,8.43540523,2511.5,2511.4,8.24440371]
[1747574538604,8.43540523,2511.5,2511.4,8.24437269]
[1747574538800,8.43540523,2511.5,2511.4,8.24436609]
[1747574539007,8.43540523,2511.5,2511.4,8.24436464]
[1747574539307,6.0661354,2511.5,2511.4,8.24436589]
[1747574539607,6.0661354,2511.5,2511.4,8.24436629]
[1747574539791,6.0661354,2511.5,2511.4,8.24436283]
[1747574539997,6.0661354,2511.5,2511.4,7.94942773]
[1747574540199,6.0661354,2511.5,2511.4,7.94942774]
[1747574540402,6.0661354,2511.5,2511.4,7.94942789]
[1747574540702,6.0661354,2511.5,2511.4,0.12442789]
[1747574540703,11.0661354,2511.5,2511.4,0.12442789]
[1747574540898,0.79613,2511.3,2511.2,7.795]
[1747574541405,5.79613,2511.3,2511.2,7.91944276]
[1747574541598,7.85003,2511.3,2511.2,7.91944276]
[1747574541793,7.85003,2511.3,2511.2,7.795]
[1747574541997,7.85003,2511.3,2511.2,7.91944281]
[1747574542301,10.90803,2511.3,2511.2,7.91944282]
[1747574542498,13.27729983,2511.3,2511.2,7.91944281]
[1747574542702,13.27729983,2511.3,2511.2,7.9194429]
[1747574542898,13.27729983,2511.3,2511.2,7.91944535]
[1747574543099,13.27729983,2511.3,2511.2,7.91944556]
[1747574543300,13.27729983,2511.3,2511.2,7.91944616]
[1747574543500,13.27729983,2511.3,2511.2,7.91944608]
[1747574543701,13.27729983,2511.3,2511.2,7.795]
[1747574543997,13.27729983,2511.3,2511.2,7.91944628]
[1747574543998,13.40421432,2511.3,2511.2,7.91944628]
[1747574544403,0.79623,2511.0,2510.9,1.3348]
[1747574544597,0.79623,2511.0,2510.9,15.91434643]
[1747574544798,0.79626,2510.9,2510.8,3.2078]
[1747574544999,3.39896,2510.9,2510.8,11.42316285]
[1747574545200,6.45696,2510.9,2510.8,3.33225568]
[1747574545405,6.45696,2510.9,2510.8,3.33225697]
[1747574545606,6.45696,2510.9,2510.8,3.33226556]
[1747574545798,6.45696,2510.9,2510.8,3.33226416]
[1747574546001,6.45696,2510.9,2510.8,3.33226658]
[1747574546209,6.45696,2510.9,2510.8,3.2078]
[1747574546607,6.45696,2510.9,2510.8,3.33226759]
[1747574546804,3.85426,2510.9,2510.8,9.57207419]
[1747574547306,0.79626,2510.9,2510.8,11.0048]
[1747574547505,2.06426,2510.9,2510.8,3.2078]
[1747574548210,5.12226,2510.9,2510.8,3.2078]
[1747574550810,5.12226,2510.9,2510.8,9.57207419]
[1747574551006,5.12226,2510.9,2510.8,11.69593613]
[1747574551312,3.85426,2510.9,2510.8,11.69593613]
[1747574552909,3.85426,2510.9,2510.8,11.69592792]
[1747574554017,3.85426,2510.9,2510.8,8.48812792]
[1747574556715,3.94644003,2510.9,2510.8,8.48812792]
[1747574557714,3.85426,2510.9,2510.8,8.48812985]
[1747574558912,3.94644003,2510.9,2510.8,8.48812985]
[1747574559617,3.94644003,2510.9,2510.8,8.48813118]
[1747574560319,3.94644003,2510.9,2510.8,1.47615699]
[1747574560914,3.94644003,2510.9,2510.8,9.27315699]
[1747574561518,3.94644003,2510.9,2510.8,1.47615791]
[1747574561713,3.94644003,2510.9,2510.8,9.27315791]
[1747574562413,3.94644003,2510.9,2510.8,1.47615791]
[1747574562623,3.94644003,2510.9,2510.8,9.27315791]
[1747574562917,5.19644003,2510.9,2510.8,1.47615791]
[1747574563421,5.19644003,2510.9,2510.8,1.47615883]
[1747574563710,5.19644003,2510.9,2510.8,0.12445883]
[1747574564311,0.79629,2510.8,2510.7,7.797]
[1747574564514,2.68859,2510.8,2510.7,9.0914]
[1747574564711,2.68859,2510.8,2510.7,15.45567419]
[1747574564912,3.37679,2510.8,2510.7,15.45567419]
[1747574565120,6.43479,2510.8,2510.7,15.45567419]
[1747574565418,6.43479,2510.8,2510.7,15.45667419]
[1747574565614,8.01972499,2510.8,2510.7,7.65867419]
[1747574565919,8.01972499,2510.8,2510.7,15.45667419]
[1747574566217,8.01972499,2510.8,2510.7,15.58113977]
[1747574566418,8.01972499,2510.8,2510.7,15.45667419]
[1747574566918,8.01972499,2510.8,2510.7,1.2944]
[1747574567123,8.01972499,2510.8,2510.7,9.0924]
[1747574567918,8.01972499,2510.8,2510.7,9.21686612]
[1747574568114,8.01972499,2510.8,2510.7,9.0924]
[1747574568318,6.43479,2510.8,2510.7,9.21686679]
[1747574569926,6.52697003,2510.8,2510.7,9.21686679]
[1747574570319,6.52697003,2510.8,2510.7,7.92046679]
[1747574570924,0.79635,2510.6,2510.5,1.3678]
[1747574571122,3.85435,2510.6,2510.5,9.58368998]
[1747574571326,3.85435,2510.6,2510.5,15.94796417]
[1747574572022,3.85435,2510.6,2510.5,8.15196417]
[1747574572223,3.85435,2510.6,2510.5,15.94796417]
[1747574573430,5.44529832,2510.6,2510.5,15.94796417]
[1747574574728,5.44529832,2510.6,2510.5,15.52807419]
[1747574574935,5.44529832,2510.6,2510.5,15.9479296]
[1747574575738,5.44529832,2510.6,2510.5,8.1519296]
[1747574576034,5.44529832,2510.6,2510.5,15.9479296]
[1747574576435,3.85435,2510.6,2510.5,15.9479296]
[1747574576624,3.85435,2510.6,2510.5,15.65254261]
[1747574576827,3.85435,2510.6,2510.5,15.94789974]
[1747574578036,3.058,2510.6,2510.5,16.74427974]
[1747574578335,0.79635,2510.6,2510.5,16.74427974]
[1747574578530,0.79635,2510.6,2510.5,16.32445419]
[1747574578738,0.79635,2510.6,2510.5,16.74426911]
[1747574579130,2.38746747,2510.7,2510.6,0.79635]
[1747574579335,2.38746747,2510.7,2510.6,8.91463911]
[1747574580635,2.38746747,2510.7,2510.6,8.91465931]
[1747574580940,2.38746747,2510.7,2510.6,8.91465394]
[1747574581838,2.38746747,2510.7,2510.6,8.49482419]
[1747574582048,2.38746747,2510.7,2510.6,8.91465655]
[1747574582241,5.44546747,2510.7,2510.6,8.91465655]
[1747574582427,5.44546747,2510.7,2510.6,8.91467336]
[1747574582740,5.44546747,2510.7,2510.6,8.11832336]
[1747574584341,2.38746747,2510.7,2510.6,8.11832336]
[1747574585137,5.44546747,2510.7,2510.6,8.11832336]